Cogmind - Beta 16.1 @@@ ROGUE MODE // 2026.02.18 @ 17:32:40 Player: ICDT Result: Self-destructed Performance ------------- Evolutions (1) 500 Regions Visited (2) 400 Robots Destroyed (13) 65 Value Destroyed (206) 206 Prototype IDs (0) 0 Alien Tech Used (0) 0 Bonus (0) 0 TOTAL SCORE: 1171 Bonus ------- None Cogmind --------- Core Integrity 324/400 Matter 218/300 Energy 112/125 System Corruption 0% Temperature Cool (4) Movement Flying (37) Location -9/Materials Parts ------- > --- POWER (1) -------- Light Ion Engine > --- PROPULSION (3) --- Flight Unit Flight Unit > --- UTILITY (3) ------ Small Storage Unit Visual Processing Unit > --- WEAPON (2) ------- (None) > --- INVENTORY (8) ---- Sensor Array Improved Terrain Scanner Seismic Detector Small Laser Light Assault Rifle Light Assault Rifle Light Cannon Mining Laser Peak State ------------ > --- POWER ------------ Light Ion Engine > --- PROPULSION ------- Flight Unit Flight Unit Flight Unit > --- UTILITY ---------- Small Storage Unit Seismic Detector > --- WEAPON ----------- Medium Laser Light Assault Rifle > --- INVENTORY -------- Visual Processing Unit Sensor Array Improved Terrain Scanner Small Laser Light Assault Rifle Light Cannon Mining Laser [Rating: 9] Favorites ----------- Power Ion Engine Engine Ion Engine Propulsion Light Treads Treads Light Treads Flight Unit Flight Unit Utility Small Storage Unit Device Seismic Detector Storage Small Storage Unit Processor Visual Processing Unit Weapon Medium Laser Energy Gun Medium Laser Ballistic Gun Light Assault Rifle Build | -11 -10 -9 ------- Run | Yrd Mat Mat Slots Evolved 2 | . . 2 Power . | . . . Propulsion 1 | . . 1 Utility 1 | . . 1 Weapon . | . . . Parts Attached 14 | 6 5 3 Power 3 | 1 2 . Engine 3 | 1 2 . Core . | . . . Reactor . | . . . Propulsion 5 | 2 2 1 Treads 2 | 2 . . Leg . | . . . Wheel . | . . . Hover . | . . . Flight 3 | . 2 1 Utility 3 | 1 1 1 Device 1 | . 1 . Storage 1 | 1 . . Processor 1 | . . 1 Hackware . | . . . Protection . | . . . Artifact . | . . . Weapon 3 | 2 . 1 Energy Gun 2 | 2 . . Energy Cannon . | . . . Ballistic Gun 1 | . . 1 Ballistic Cannon . | . . . Launcher . | . . . Special Weapon . | . . . Impact Weapon . | . . . Slashing Weapon . | . . . Piercing Weapon . | . . . Special Melee Weapon . | . . . Unidentified Prototypes . | . . . Parts Lost 1 | . . 1 Power . | . . . Propulsion 1 | . . 1 Utility . | . . . Weapon . | . . . Highest Loss Streak 1 | . . 1 To Critical Strikes . | . . . Average Backups 3 | 1 3 4 Power . | . . . Propulsion . | . . . Utility 1 | . 1 1 Weapon 1 | . 1 3 Tool/Special . | . . . Unused Backups 5 | . . 5 Power . | . . . Propulsion . | . . . Utility 2 | . . 2 Weapon 3 | . . 3 Tool/Special . | . . . Average Slot Usage (%) 89 | . 91 84 Engine 13 | . 14 11 Treads 16 | . 21 . Flight 12 | . 6 33 Device 10 | . 11 10 Storage 13 | . 14 11 Processor 1 | . . 4 Energy Gun 19 | . 22 10 Ballistic Gun 1 | . . 4 Peak Build Rating 9 | 6 7 9 Average Rating 6 | 5 6 8 On Entrance 3 | . 6 4 Avg Prop Armor Cover (%) . | . . . Naked Turns . | . . . Heaviest Build 14 | 13 14 12 Greatest Support 40 | 40 40 12 Greatest Overweight (x) 3 | . 3 1 Average Overweight (x) . | . . . Largest Inventory Capacity 8 | 8 8 8 Average Capacity 7 | 7 8 8 Most Carried 8 | 5 8 8 Average Carried 3 | 1 3 4 Final Capacity 8 | 8 8 8 Final Carried 8 | 3 7 8 Class Distribution -------------------- 100% | Mutant Dominant Class ---------------- Mutant | -10/Materials Mutant | -9/Materials Resources | -11 -10 -9 ----------- Run | Yrd Mat Mat Matter Collected 373 | 260 113 . Remotely . | . . . Salvage Created 403 | 130 273 . Parts 22 | 9 13 . Haulers Intercepted 1 | . 1 . Recyclers Shooed 2 | . 2 . Parts Field Recycled . | . . . Retrieved Matter . | . . . Parts Self-Destructed . | . . . Prevented . | . . . Parts Restored . | . . . Kills | -11 -10 -9 ------- Run | Yrd Mat Mat Combat Hostiles Destroyed 6 | . 6 . Guns 6 | . 6 . Classes Destroyed 6 | 2 4 . Tunneler 3 | 3 . . Hauler 1 | . 1 . Recycler 1 | 1 . . Watcher 2 | . 2 . Swarmer 3 | . 3 . Grunt 3 | . 3 . Best Kill Streak 2 | 2 2 . Combat Bots Only 2 | . 2 . Max Kills in Single Turn 1 | 1 1 . Gunslinging . | . . . Exploded . | . . . Melee . | . . . Uniques/NPCs Destroyed . | . . . Combat | -11 -10 -9 -------- Run | Yrd Mat Mat Hostile Shots Fired 61 | . 44 17 Missed 32 | . 17 15 Hits 29 | . 27 2 Projectile 29 | . 27 2 AOE 1 | . . 1 Critical Strikes 1 | . . 1 Damage Taken 367 | . 277 90 Core 128 | . 52 76 Absorbed by Shields . | . . . Core Remaining (%) 89 | 100 79 . Volleys Fired 74 | 11 44 19 Largest 2 | 2 2 2 Hottest 90 | 90 90 90 Shots Fired 140 | 22 80 38 Gun 140 | 22 80 38 Cannon . | . . . Launcher . | . . . Special . | . . . Kinetic 17 | . . 17 Thermal 123 | 22 80 21 Explosive . | . . . Electromagnetic . | . . . Robot Hit Streak 12 | 5 12 . Robot Miss Streak 3 | 3 3 . Penetration Max . | . . . Secondary Targets . | . . . Shots Hit Robots 62 | 11 51 . Core Hits 22 | 5 17 . Critical Kills . | . . . Critical Parts Destroyed . | . . . Critical Strikes 4 | 2 2 . Burn 4 | 2 2 . Melee Attacks . | . . . Impact . | . . . Slashing . | . . . Piercing . | . . . Sneak Attacks . | . . . Combat Hostiles . | . . . Follow-up Attacks . | . . . Damage Inflicted 740 | 126 614 . Guns 740 | 126 614 . Cannons . | . . . Explosions . | . . . Melee . | . . . Ramming . | . . . Kinetic . | . . . Thermal 740 | 126 614 . Explosive . | . . . Electromagnetic . | . . . Impact . | . . . Slashing . | . . . Piercing . | . . . Highest Corruption . | . . . Average Corruption . | . . . Corruption Purged . | . . . Corruption Blocked . | . . . Overload Shots . | . . . Overflow Damage . | . . . Projectiles . | . . . Explosions . | . . . Melee . | . . . Knockbacks . | . . . Impact . | . . . Kinetic . | . . . Secondary . | . . . Self-Inflicted Damage . | . . . Shots . | . . . Rammed . | . . . Targets Rammed . | . . . Kicked . | . . . Crushed . | . . . Highest Temperature 348 | 180 348 246 Average Temperature 102 | 62 106 117 Received Heat Transfer 123 | . 111 12 Effects 2 | . 2 . Energy Bleed 1 | . 1 . Matter Decay 1 | . 1 . Siege Activations . | . . . Martial Activations . | . . . Shielding Activations . | . . . Robots Disrupted . | . . . Combat Hostiles . | . . . Robots Corrupted . | . . . Combat Hostiles . | . . . Parts Fried . | . . . Impact Corruptions . | . . . Robots Melted . | . . . Combat Hostiles . | . . . Parts Melted 4 | . 4 . Heat Transferred 2243 | 495 1748 . Parts Sabotaged . | . . . Parts Stolen . | . . . Parts Stripped . | . . . Power Chain Reactions . | . . . Alert | -11 -10 -9 ------- Run | Yrd Mat Mat Maximum Alert Level . | . . . Low Security (%) 100 | 100 100 100 Level 1 . | . . . Level 2 . | . . . Level 3 . | . . . Level 4 . | . . . Level 5 . | . . . High Security . | . . . Max Security . | . . . Peak Influence 85 | 10 85 15 Initial 2 | . . 2 Average 14 | . 23 1 Influence Increases 234 | 20 199 15 Destroy 0b10 Robot/C 120 | . 120 . Destroy 0b10 Robot/NC 35 | 20 15 . Destroy Leader 26 | . 26 . Successful Hack 23 | . 23 . Partial Spotted 15 | . . 15 Lose Combat Pursuer 15 | . 15 . Influence Decreases 229 | 20 192 17 Entered New Map 5 | . . 5 Time Decay 155 | 20 133 2 Lost Part 10 | . . 10 Purge Threat 59 | . 59 . Squads Dispatched 3 | . 1 2 Investigation . | . . . Extermination . | . . . Reinforcement 3 | . 1 2 Assault . | . . . Garrison . | . . . Intercept . | . . . Searches Triggered . | . . . Construction Impeded . | . . . Haulers Reinforced . | . . . Active Scanning Responses . | . . . Cargo Convoy Interrupts . | . . . Stealth | -11 -10 -9 --------- Run | Yrd Mat Mat Distress Signals 2 | . 1 1 Communications Jammed . | . . . Distress Signals . | . . . Times Spotted 29 | . 16 13 Peak Tracking Total 12 | . 5 12 Tactical Retreats 1 | . 1 . Traps | -11 -10 -9 ------- Run | Yrd Mat Mat Traps Triggered 1 | . 1 . Indirectly . | . . . Trap Hack Attempts . | . . . Triggered . | . . . Disarmed . | . . . Reprogrammed . | . . . Reused . | . . . Traps Extracted . | . . . Installed . | . . . Triggered . | . . . Machines | -11 -10 -9 ---------- Run | Yrd Mat Mat Machines Disabled . | . . . Max in Single Turn . | . . . Machines Repaired . | . . . Machines Dismantled . | . . . Machines Sabotaged . | . . . Overloaded Fab Kills . | . . . Hacking | -11 -10 -9 --------- Run | Yrd Mat Mat Machines Accessed 5 | . 5 . Terminals 5 | . 5 . Fabricators . | . . . Repair Stations . | . . . Recycling Units . | . . . Scanalyzers . | . . . Garrison Access . | . . . Total Hacks 10 | . 10 . Successful 5 | . 5 . Failed 5 | . 5 . Catastrophic 1 | . 1 . Database Lockouts . | . . . Manual 2 | . 2 . Terminals 10 | . 10 . Fabricators . | . . . Repair Stations . | . . . Recycling Units . | . . . Scanalyzers . | . . . Garrison Access . | . . . Terminal Hacks 4 | . 4 . Branch Access Points 1 | . 1 . Terminal Index 1 | . 1 . Unreport Threat 1 | . 1 . Hauler Manifests 1 | . 1 . Fabricator Hacks . | . . . Repair Station Hacks . | . . . Recycling Unit Hacks . | . . . Scanalyzer . | . . . Garrison Access Hacks . | . . . Unauthorized Hacks 1 | . 1 . Terminals 1 | . 1 . Botnet 1 | . 1 . Fabricators . | . . . Repair Stations . | . . . Recycling Units . | . . . Scanalyzers . | . . . Garrison Access . | . . . Data Cores Recovered . | . . . Used . | . . . Hacking Detections 4 | . 4 . Full Trace Events . | . . . Feedback Events . | . . . Feedback Blocked . | . . . Robot Schematics Acquired . | . . . Robots Built . | . . . Authchips . | . . . Time . | . . . Total Robot Build Rating . | . . . Part Schematics Acquired . | . . . Parts Built . | . . . Authchips . | . . . Time . | . . . Total Part Build Rating . | . . . Part Studies Acquired . | . . . Parts Repaired . | . . . Time . | . . . Parts Recycled . | . . . Recycled Matter . | . . . Retrieved Matter . | . . . Retrieved Components . | . . . Parts Scanalyzed . | . . . Part Schematics Acquired . | . . . Parts Damaged . | . . . Bothacking | -11 -10 -9 ------------ Run | Yrd Mat Mat Used RIF Installer . | . . . Robots Hacked . | . . . Non-combat . | . . . Combat . | . . . Robot Hacks Applied . | . . . Relay Couplers Released . | . . . Fabnet Peak Effective % . | . . . Robots Rewired . | . . . Allies Hacked . | . . . Hacks Repelled . | . . . Allies | -11 -10 -9 -------- Run | Yrd Mat Mat Total Allies . | . . . Largest Group . | . . . Highest-Rated Group . | . . . Highest-Rated Ally . | . . . Total Orders . | . . . Ally Attacks . | . . . Total Damage . | . . . Kills . | . . . Allies Corrupted . | . . . Allies Melted . | . . . Intel | -11 -10 -9 ------- Run | Yrd Mat Mat Active Infowar (turns) 528 | . 394 134 Optics 57 | . . 57 Seismic 527 | . 394 133 Robot Analysis Total . | . . . Derelict Logs Recovered . | . . . Drone Launches . | . . . Drone Recoveries . | . . . Exploration | -11 -10 -9 ------------- Run | Yrd Mat Mat Turns Passed 822 | 190 497 135 Spaces Moved 614 | 98 400 116 Core 12 | 12 . . Treads 239 | 86 153 . Legs . | . . . Wheels . | . . . Hover . | . . . Flight 363 | . 247 116 Fastest Speed 34 | 50 37 34 Average Speed 85 | 146 84 34 Slowest Speed 280 | 160 280 117 Overloaded Moves . | . . . Propulsion Burnouts . | . . . Robots Hopped 5 | . 5 . Potential Cave-ins . | . . . Cave-ins Triggered . | . . . Exploration Rate (%) 33 | 6 77 17 Regions Visited 2 Branch Regions . Pre-discovered Areas . | . . . Known Exits Taken . | . . . Unknown Exits Taken 2 | 1 1 . Scrap Searched . | . . . Spaces Dug . | . . . Terrain Destroyed . | . . . Melee . | . . . Projectile . | . . . AOE . | . . . Terrain Rammed . | . . . Walls Destroyed . | . . . Machines Disabled . | . . . Actions | -11 -10 -9 --------- Run | Yrd Mat Mat Total 775 | 122 476 177 Wait 44 | . 15 29 Move 602 | 97 389 116 Hop 5 | . 5 . Pick Up 20 | 8 8 4 Fast Attach 1 | 1 . . Attach 15 | 5 5 5 Detach 6 | . 4 2 Swap 2 | . 1 1 Drop 6 | . 5 1 Fire 74 | 11 44 19 Melee . | . . . Ram . | . . . Kick . | . . . Crush . | . . . Escape Stasis . | . . . Rewire . | . . . Trap . | . . . Miscellaneous . | . . . Route ------- -11/Scrapyard -10/Materials (discovered 4 exits: [*Mat x2] / *Min x2) -9/Materials History --------- Turn | Location | Event 8 | -11/Scrapyard | Discovered new exit (range 14) 191 | -11/Scrapyard | Entered Materials 213 | -10/Materials | Discovered new exit (range 11) 279 | -10/Materials | Discovered new exit (range 6) 307 | -10/Materials | Build established: Mutant 535 | -10/Materials | Discovered new exit (range 11) 627 | -10/Materials | Discovered new exit (range 15) 648 | -10/Materials | Identified exit to Mines 688 | -10/Materials | Entered another Materials area 688 | -9/Materials | Evolved 2 slots: Propulsion x1, Utility x1 823 | -9/Materials | Self-destructed Last Messages --------------- 00764_ Acquired Lgt. Cannon. 00813_ W-16 Scout sends out distress signal. 00814_ K-01 Serf collects debris. 00814_ O-16 Technician: "IFF HANDSHAKE FAILED. SECURING TERMINAL." 00815_ K-01 Serf collects debris. 00817_ Fusion Modulator explodes. 00817_ W-16 Scout destroyed. 00817_ Processing Tank disabled. 00820_ ALERT: Hostiles spotted, dispatching reinforcements to Terminal M009. 00820_ K-01 Serf collects debris. 00820_ Flight Unit destroyed. 00822_ Dropped Med. Laser. 00823_ O-16 Technician uses terminal to summon reinforcements. 00823_ ALERT: Hostiles spotted, dispatching reinforcements to Terminal M001. 00823_ O-16 Technician locks terminal. 00823_ S-10 Pest destroyed. Map ----- +----------------------------------------------------+ | ???????????? ??????????????????????????????????? | | ???????????# ??????????????????????????????????? | | ???????????# #?????????????????????????????????? | | ???????????# #?????????????????????????????????? | | ???????????# #?????????????????????????????????? | | ???????????# #?????????????????????????????????? | | ???????????# #?????????????????????????????????? | | ???##??##### ######+####???????????????????????? | | ??? ?# #???????????????????????? | | ????= # +???????????????????????? | | ????? # #???????????????????????? | | ?????? + """ """ """ #???????????????????????? | | ???????# """ """ """ #???????????????????????? | | ???????# """ """ """ #???????????????????????? | | ??????## """ g""" """ #???????????????????????? | | ####### """ #???????????????????????? | | #???????????????????????? | | #???????????????????????? | | " #???????????????????????? | | ##### " #???????????????????????? | | #?# " #???????????????????????? | | #?# " o"#???????????????????????? | | #?# " s T#???????????????????????? | | #?# =% ["#???????????????????????? | | #?# s * ###/######??????????????? | | #?# s k @ t w + ??????? | | ### ##+#########+######+####??????????????? | | + # ??????????????????????????????????? | | ### # ?????????????????????????????????? | | #?# # ????????????????????????????????? | | #?# # ???????????????????????????????? | | ###?# + ????????????????????????????????? | | ????# # ?????????????????????????????????? | | ????# ######????????????????????????????????? | | ?????+###+#??????????????????????????????????????? | | ?????????????????????????????????????????????????? | | ?????????????????????????????????????????????????? | | ?????????????????????????????????????????????????? | | ?????????????????????????????????????????????????? | | ?????????????????????????????????????????????????? | | ?????????????????????????????????????????????????? | | ?????????????????????????????????????????????????? | | ?????????????????????????????????????????????????? | | | | | | | | | | | | | | | +----------------------------------------------------+ Best States ------------- Heat Dissipation 28 Energy Generation 10 Energy Capacity 250 Matter Stores 300 Matter Capacity 300 Sight Range 18 Terrain Scan Density 10 Evasion (%) 63 Recoil Reduction 2 Item Schematics ----------------- None Robot Schematics ------------------ None Fabricated ------------ Nothing Repaired ---------- Nothing Studied --------- None Alien Tech Used ----------------- None Achievements -------------- None Challenges ------------ None Game ------ Seed Beta 16.1 Manual? 1 Play Time 00:16:29 Cumulative 23.1 hours Start 2026.02.18 @ 16:55:32 End 2026.02.18 @ 17:32:40 Sessions 1 Manual Loads 0 Difficulty Rogue Special Mode None Game No. 31 Rogue 1 Adventurer 30 Explorer 0 Win Type - Total 0 Types 0/0/0/0/0/0/0/0/0/0 Lore% 19 Gallery% 16 Achievement% 15 Wizard Run 0 Options --------- Layout 1 ASCII 0 Keyboard 0 Movement Mouse Keybinds 0 Fullscreen 1 Font 32/SmallcapsGlow Map View 50x40 Zoom Use 0% Tactical HUD 1 Map Filters SATURATION(70) Filters LOW_CONTRAST(30,31,31) Steam 1 RUN: 9f613b4b-4d89-4903-9b10-ed54a8b9b320